bitfinex/quotes_ETHUSD_20240730
["timestamp","ask_amount","ask_price","bid_price","bid_amount"]
[1722349858298,3.00308,3330.0,3329.2,10.37364]
[1722349858503,3.00286,3330.2,3329.4,3.00349]
[1722349858711,6.00576,3330.2,3329.4,3.00349]
[1722349858928,3.00291,3330.1,3329.4,3.00349]
[1722349859129,3.00267,3330.4,3329.4,3.00346]
[1722349859326,3.00267,3330.4,3329.5,0.4070954]
[1722349859536,3.00292,3330.1,3329.5,0.4070954]
[1722349859843,3.00276,3330.3,3329.2,7.37]
[1722349860021,0.38089097,3330.7,3329.2,7.37]
[1722349860022,3.00284,3330.2,3329.2,7.37]
[1722349860345,3.00341,3329.6,3329.2,7.37]
[1722349860490,3.00304,3330.0,3329.2,7.37]
[1722349860844,3.00268,3330.4,3329.2,7.37]
[1722349861146,3.00334,3329.7,3329.2,7.37]
[1722349861428,3.0035,3329.5,3329.2,7.37]
[1722349861728,3.00331,3329.7,3329.2,7.37]
[1722349862133,3.00305,3330.0,3329.2,7.37]
[1722349862436,0.55,3330.4,3329.3,0.06006858]
[1722349862437,3.00283,3330.2,3329.3,0.06006858]
[1722349862746,0.38089097,3330.7,3329.3,0.06006858]
[1722349862747,3.00242,3330.7,3329.5,3.0034]
[1722349862940,3.00323,3329.8,3328.9,3.00395]
[1722349863095,3.6986957,3330.8,3329.0,3.00383]
[1722349863428,3.6986957,3330.8,3329.4,3.00348]
[1722349863429,3.00249,3330.6,3329.4,3.00348]
[1722349863746,3.00265,3330.4,3329.5,0.06005789]
[1722349863892,3.5110057,3330.8,3329.5,3.00339]
[1722349864096,3.5110057,3330.8,3329.1,3.0]
[1722349864097,3.00243,3330.7,3329.8,3.00311]
[1722349864341,0.5086957,3330.8,3329.8,3.06316591]
[1722349864630,0.5086957,3330.8,3330.0,3.00293]
[1722349864813,0.5086957,3330.8,3329.8,2.55275591]
[1722349864814,3.00193,3331.2,3330.3,3.00267]
[1722349865039,3.00138,3331.8,3330.1,3.303163]
[1722349865040,3.00147,3331.7,3330.1,3.303163]
[1722349865204,0.5086957,3331.8,3330.8,2.4927]
[1722349865545,0.5086957,3331.8,3330.9,0.06003532]
[1722349865546,3.00153,3331.7,3330.9,0.06003532]
[1722349865701,3.00156,3331.6,3330.8,5.49495]
[1722349865890,3.00153,3331.7,3330.8,6.044458]
[1722349866092,3.00052,3332.8,3331.2,3.00184]
[1722349866388,1.86128551,3333.5,3331.8,3.00131]
[1722349866389,1.52843796,3332.7,3331.8,3.00131]
[1722349866593,0.20371337,3332.7,3331.9,3.06124612]
[1722349866830,3.00048,3332.8,3331.9,3.15040916]
[1722349867217,3.00048,3332.8,3331.9,3.09039304]
[1722349867421,0.5086957,3332.9,3332.0,2.4005]
[1722349867753,0.5086957,3332.9,3332.1,0.14885951]
[1722349867944,4.16006627,3332.9,3332.1,0.14885951]
[1722349868153,3.5091357,3332.9,3332.1,0.08884565]
[1722349868300,3.00054,3332.8,3332.1,0.08884565]
[1722349868699,3.00057,3332.7,3332.1,0.08884565]
[1722349868898,3.5091357,3332.9,3332.1,0.08884565]
[1722349869147,3.00057,3332.7,3332.1,0.08884565]
[1722349869504,8.5927,3333.6,3332.1,0.08884565]
[1722349869505,5.4027,3333.6,3332.1,0.08884565]
[1722349869702,3.00048,3332.8,3332.1,0.08884565]
[1722349869969,3.0003,3333.0,3332.0,3.00119]
[1722349870184,2.99999,3333.4,3332.5,3.00068]
[1722349870380,2.99976,3333.6,3332.6,0.06000521]
[1722349870381,3.00003,3333.3,3332.6,0.06000521]
[1722349870508,2.99967,3333.7,3332.6,0.14850904]
[1722349870711,2.99967,3333.7,3332.9,3.00038]
[1722349870907,2.99967,3333.7,3332.7,0.34547014]
[1722349871117,0.5086957,3333.9,3333.0,0.08826839]
[1722349871378,2.99978,3333.6,3332.6,3.00063]
[1722349871659,3.0,3333.4,3333.1,0.08821986]
[1722349871878,3.0,3333.4,3332.6,0.842373]
[1722349871879,2.99967,3333.7,3332.8,3.00042]
[1722349872189,2.99967,3333.7,3333.2,0.08811631]
[1722349872482,2.99977,3333.6,3333.3,0.08807054]
[1722349872983,0.5086957,3333.9,3332.8,0.69317107]
[1722349872984,2.99958,3333.8,3332.8,0.69317107]
[1722349873279,2.99985,3333.5,3332.5,5.42299]
[1722349873506,2.99985,3333.5,3332.9,0.08823164]
[1722349873782,3.00026,3333.1,3332.5,2.4223]
[1722349873965,3.00009,3333.3,3333.0,0.08814185]
[1722349874167,2.99997,3333.4,3332.5,5.42298]
[1722349874335,2.99977,3333.6,3333.1,0.08810157]
[1722349874538,0.5086957,3333.9,3332.5,2.4223]
[1722349874739,5.07730139,3333.8,3332.5,2.4223]
[1722349874938,2.99982,3333.6,3332.5,2.4223]
[1722349875235,2.99994,3333.4,3332.5,5.42297]
[1722349875491,3.00003,3333.3,3332.2,3.00095]
[1722349875648,3.0005,3332.8,3332.1,3.0]
[1722349876009,3.00075,3332.5,3332.0,2.361]
[1722349876298,3.00067,3332.6,3332.0,2.361]
[1722349876504,3.00135,3331.9,3331.0,3.00204]
[1722349876645,0.300067,3332.5,3330.9,2.361]
[1722349876646,3.0015,3331.7,3330.9,2.361]
[1722349876980,3.00123,3332.0,3331.0,3.00209]
[1722349877191,3.00091,3332.4,3331.0,0.2361]
[1722349877501,3.0007,3332.6,3331.6,3.00148]
[1722349877854,6.55031,3333.0,3331.5,7.37]
[1722349877855,3.00089,3332.4,3331.5,7.37]
[1722349878162,6.00238,3332.1,3331.5,7.37]
[1722349878386,3.0012,3332.0,3331.5,7.37]
[1722349878690,3.00109,3332.2,3331.5,7.37]
[1722349878840,3.00111,3332.1,3331.5,7.37]
[1722349879342,3.001,3332.3,3331.6,0.06002517]
[1722349879885,3.00079,3332.5,3331.6,3.06149517]
[1722349880084,3.00042,3332.9,3331.7,2.4053]
[1722349880247,3.00048,3332.8,3332.0,3.00119]
[1722349880437,6.00067,3333.0,3332.1,0.06001236]
[1722349880642,3.0003,3333.0,3332.2,3.001]
[1722349881281,3.00071,3332.6,3332.3,0.08459118]
[1722349881451,3.00084,3332.4,3332.3,0.08459118]
[1722349881650,3.00045,3332.9,3331.8,0.06001905]
[1722349881889,3.00053,3332.8,3331.9,3.08599238]
[1722349882089,3.00006,3333.3,3332.0,0.06001344]
[1722349882289,2.3329,3333.8,3332.0,10.43120344]
[1722349882290,6.00068,3333.0,3332.0,10.43120344]
[1722349882592,3.0004,3332.9,3332.1,3.08593509]
[1722349882789,3.00026,3333.1,3332.2,3.06096238]
[1722349882991,3.00032,3333.0,3332.3,0.06001238]
[1722349883215,3.00032,3333.0,3332.3,0.14478513]
[1722349883550,3.00032,3333.0,3332.3,0.45935764]
[1722349883551,3.0003,3333.0,3332.3,0.45935764]
[1722349883752,3.00057,3332.7,3332.3,0.08477275]
[1722349884053,6.00121,3332.7,3332.4,0.0847297]
[1722349884252,3.00057,3332.7,3332.0,7.37]
[1722349884489,3.00057,3332.7,3332.1,0.08480657]
[1722349884678,6.00087,3332.9,3332.1,0.08480657]
[1722349884873,3.00041,3332.9,3332.1,0.08480657]
[1722349885063,3.00041,3332.9,3332.2,0.0600124]
[1722349885259,3.00041,3332.9,3332.3,0.08472597]
[1722349885877,3.00035,3333.0,3332.3,0.08472597]
[1722349886060,3.00031,3333.0,3332.3,0.08472597]
[1722349886265,3.0,3333.5,3332.4,0.0600124]
[1722349886498,3.00015,3333.2,3332.4,3.4309266]
[1722349886693,3.00015,3333.2,3332.5,0.08464539]
[1722349886913,3.00043,3332.9,3332.5,0.08464539]
[1722349887128,3.00054,3332.8,3332.0,7.37]
[1722349887418,3.0,3333.5,3332.6,0.0846051]
[1722349887419,3.00045,3332.9,3332.6,0.0846051]
[1722349887586,3.00053,3332.8,3332.0,10.37119]
[1722349887916,6.00107,3332.8,3332.7,0.08465285]
[1722349888120,3.00053,3332.8,3332.0,7.37]
[1722349888301,3.00066,3332.6,3332.0,7.37]
[1722349888478,0.300015,3333.1,3332.0,10.37114]
[1722349888677,3.00045,3332.9,3332.0,10.37114]
[1722349888873,3.00045,3332.9,3332.1,3.0011]
[1722349889076,3.00066,3332.6,3332.0,7.37]
[1722349889717,3.00053,3332.8,3332.0,7.37]
[1722349889905,3.899904,3333.4,3332.0,7.37]
[1722349889906,3.00004,3333.3,3332.1,0.737]
[1722349890098,3.00039,3332.9,3332.1,3.73805]
[1722349890303,2.99968,3333.7,3332.4,3.00083]
[1722349890505,3.00007,3333.3,3332.6,5.37355]
[1722349890912,3.00012,3333.2,3332.6,2.3729]
[1722349891109,2.99994,3333.4,3332.6,3.95335159]
[1722349891425,3.00003,3333.3,3332.6,3.95335159]
[1722349891600,3.0003,3333.0,3332.6,2.3729]
[1722349891937,3.00022,3333.1,3332.6,2.3729]
[1722349892442,2.99999,3333.4,3332.6,2.3729]
[1722349892645,3.00003,3333.3,3332.6,5.37355]
[1722349892945,0.55,3333.7,3332.6,5.37355]
[1722349892946,3.00012,3333.2,3332.7,0.537355]
[1722349893154,2.99997,3333.4,3332.6,5.3735]
[1722349893496,2.99975,3333.7,3332.7,0.06000603]
[1722349893695,2.99975,3333.7,3333.0,3.00029]
[1722349893941,2.99978,3333.6,3333.0,0.05999822]
[1722349894351,2.99958,3333.8,3333.0,0.05999822]
[1722349894640,2.99958,3333.8,3333.0,3.06023822]
[1722349894844,2.99958,3333.8,3333.0,3.6906341]
[1722349895192,3.5081957,3333.9,3333.0,3.6906241]
[1722349895643,0.1478954,3334.5,3333.4,2.4111]
[1722349895843,2.99907,3334.4,3333.5,0.05998588]
[1722349896142,2.99927,3334.2,3333.4,2.4111]
[1722349896308,2.99954,3333.9,3333.6,0.08429037]
[1722349896661,2.99931,3334.1,3333.3,7.37]
[1722349896662,2.99936,3334.1,3333.3,7.37]
[1722349896795,2.99936,3334.1,3333.7,0.08425011]
[1722349897150,2.99936,3334.1,3333.8,0.08420985]
[1722349897292,2.99906,3334.4,3333.3,7.37]
[1722349897499,2.9998,3333.6,3333.3,7.37]
[1722349897697,2.99967,3333.7,3333.1,3.0]
[1722349897946,2.99967,3333.7,3333.0,3.63039588]
[1722349898281,2.99972,3333.7,3333.0,3.63039588]
[1722349898538,2.99951,3333.9,3333.2,3.00008]
[1722349898897,2.99951,3333.9,3333.1,3.89420759]
[1722349899446,2.99967,3333.7,3333.1,0.89400759]
[1722349899741,2.99972,3333.7,3333.1,0.89400759]
[1722349899943,2.99953,3333.9,3333.2,0.45244035]
[1722349900151,2.99971,3333.7,3333.2,0.45244035]
[1722349900327,2.99945,3334.0,3333.0,3.63039588]
[1722349900534,2.99995,3333.4,3332.9,2.3093]
[1722349900732,2.99985,3333.5,3332.9,2.3093]
[1722349901541,0.38969554,3334.3,3333.0,0.06000175]
[1722349901837,2.99928,3334.2,3333.1,3.06013438]
[1722349902084,2.9994,3334.0,3333.2,0.30601344]
[1722349902610,0.1478954,3334.5,3333.3,0.05998886]
[1722349902887,2.99913,3334.3,3333.6,2.99971]
[1722349903195,0.1478954,3334.5,3333.7,0.05998594]
[1722349903341,0.1478954,3334.5,3333.9,5.29904]
[1722349903540,0.1478954,3334.5,3334.0,0.05998055]
[1722349903885,0.1478954,3334.5,3334.0,3.05936055]
[1722349904198,0.1478954,3334.5,3334.1,2.99923]
[1722349904335,0.1478954,3334.5,3334.2,0.59585803]
[1722349905478,0.1478954,3334.5,3334.2,3.59506803]
[1722349905662,0.1478954,3334.5,3334.2,0.59585803]
[1722349907655,0.1478954,3334.5,3334.2,3.59506803]
[1722349907835,0.1478954,3334.5,3334.3,0.05997701]
[1722349908040,0.1478954,3334.5,3334.3,3.41856282]
[1722349908280,0.1478954,3334.5,3334.4,2.99904]
[1722349908487,0.1478954,3334.5,3334.4,3.05901127]
[1722349908638,0.1478954,3334.5,3333.9,5.2996]
[1722349908836,0.1478954,3334.5,3333.9,5.29902]
[1722349909037,3.1468654,3334.5,3333.9,2.2996]
[1722349909374,0.1478954,3334.5,3333.9,9.62597569]
[1722349909621,0.1478954,3334.5,3333.9,3.62711569]
[1722349909948,0.1478954,3334.5,3333.9,6.62653569]
[1722349910226,0.1478954,3334.5,3334.4,2.99904]
[1722349910389,0.1478954,3334.5,3334.4,3.598865]
[1722349910731,0.1478954,3334.5,3334.4,6.597905]
[1722349911145,0.1478954,3334.5,3334.4,3.68166204]
[1722349911432,0.1478954,3334.5,3334.4,0.68262204]
[1722349911997,0.1478954,3334.5,3334.4,0.08279704]
[1722349912327,0.1478954,3334.5,3334.4,0.1427697]
[1722349912832,0.1478954,3334.5,3334.4,3.1418097]
[1722349913041,0.1478954,3334.5,3334.4,3.08183704]
[1722349915231,0.1478954,3334.5,3334.4,0.08279704]
[1722349915622,0.1478954,3334.5,3333.9,8.29903]
[1722349915915,0.1478954,3334.5,3334.0,2.99937]
[1722349916316,0.1478954,3334.5,3333.9,10.22649269]
[1722349916317,0.1478954,3334.5,3334.1,0.08287382]
[1722349916510,0.1478954,3334.5,3333.9,10.22654269]
[1722349916703,3.1469254,3334.5,3334.0,0.08291408]
[1722349916912,2.99916,3334.3,3334.0,0.08291408]
[1722349917320,3.1468554,3334.5,3334.0,0.08291408]
[1722349917644,2.99949,3333.9,3333.8,7.37]
[1722349918293,2.9992,3334.3,3332.9,7.37]
[1722349918500,3.0,3333.4,3332.9,7.37]
[1722349918753,3.0,3333.4,3332.9,1.037051]
[1722349919048,0.55,3334.2,3332.5,7.37]
[1722349919049,3.00012,3333.2,3332.5,7.37]
[1722349919191,3.00004,3333.3,3332.5,7.37]
[1722349919391,2.99989,3333.5,3332.5,7.37]
[1722349919635,2.99989,3333.5,3332.7,3.00053]
[1722349919801,2.99968,3333.7,3332.7,4.037543]
[1722349920010,2.99935,3334.1,3333.2,3.00007]
[1722349920317,2.99963,3333.8,3332.9,3.00033]
[1722349920513,2.99942,3334.0,3333.2,3.0001]
[1722349920711,0.59222799,3334.2,3333.3,3.00001]
[1722349920942,2.99932,3334.1,3333.4,2.99993]
[1722349921145,2.99949,3333.9,3333.0,3.300283]
[1722349921351,2.99949,3333.9,3333.1,3.0]
[1722349921567,2.99991,3333.5,3332.4,5.79979]
[1722349921723,2.99991,3333.5,3332.7,3.00055]
[1722349921924,2.99971,3333.7,3332.9,3.00038]
[1722349922195,2.99952,3333.9,3332.9,3.00038]
[1722349922364,2.99952,3333.9,3333.0,3.600038]
[1722349922565,2.3847,3334.4,3333.0,3.600038]
[1722349922566,2.99981,3333.6,3333.0,3.600038]
[1722349922739,2.99959,3333.8,3332.8,6.00042]
[1722349922935,2.99954,3333.9,3333.1,3.0002]
[1722349923139,2.99954,3333.9,3333.2,3.00011]
[1722349923355,2.99942,3334.0,3333.3,0.600031]
[1722349923677,2.99942,3334.0,3333.2,3.00011]
[1722349923887,2.99949,3333.9,3332.9,3.00034]
[1722349924033,2.99949,3333.9,3333.1,3.00016]
[1722349924234,2.99949,3333.9,3333.2,0.600016]
[1722349924440,2.99949,3333.9,3333.2,3.600116]
[1722349924733,5.99906,3333.9,3333.2,0.600016]
[1722349924931,2.3847,3334.4,3332.8,3.0]
[1722349925130,2.9999,3333.5,3332.7,3.00051]
[1722349925432,2.99997,3333.4,3332.8,3.0]
[1722349925633,2.99997,3333.4,3331.9,12.82673]
[1722349925634,3.0003,3333.0,3331.9,12.82673]
[1722349925881,3.00024,3333.1,3332.0,3.04901288]
[1722349926050,3.00044,3332.9,3332.1,3.00103]
[1722349926251,5.34731,3333.5,3332.1,3.08511608]
[1722349926252,3.00038,3333.0,3332.1,3.08511608]
[1722349926450,3.00061,3332.7,3332.1,0.82305221]
[1722349926846,3.00034,3333.0,3332.1,0.82305221]
[1722349926847,3.0003,3333.0,3332.3,3.0009]
[1722349927386,3.00016,3333.2,3332.4,3.08487043]
[1722349927604,2.99999,3333.4,3332.5,3.00073]
[1722349927895,2.99999,3333.4,3332.7,3.0005]
[1722349928040,5.31282,3334.0,3332.6,0.39244788]
[1722349928241,5.31282,3334.0,3332.4,10.37075]
[1722349928242,3.00032,3333.0,3332.8,0.08388927]
[1722349928503,3.00032,3333.0,3332.4,7.37]
[1722349928504,3.00032,3333.0,3332.9,0.08384899]
[1722349928702,3.00032,3333.0,3332.4,7.37]
[1722349929021,7.55176692,3333.9,3332.6,3.00058]
[1722349929205,7.55176692,3333.9,3332.5,0.14402206]
[1722349929206,2.99989,3333.5,3332.8,3.00043]
[1722349929715,3.0,3333.9,3332.9,0.08384899]
[1722349929918,1.52764061,3333.8,3332.9,0.08384899]
[1722349930078,3.0003,3333.0,3332.4,7.37]
[1722349930277,3.00002,3333.4,3332.5,0.08431257]
[1722349930478,3.0005,3332.8,3332.5,0.08431257]
[1722349931090,1.55225692,3333.6,3332.5,0.08431257]
[1722349931292,1.55225692,3333.6,3332.0,7.37]
[1722349931293,3.00111,3332.1,3332.0,7.37]
[1722349931504,3.00111,3332.1,3331.4,7.37]
[1722349931793,3.00154,3331.7,3331.1,7.37]
[1722349931993,3.00154,3331.7,3330.7,10.3723]
[1722349932241,3.00154,3331.7,3330.8,3.06225665]
[1722349932381,3.00154,3331.7,3330.9,3.00216]
[1722349932722,3.00154,3331.7,3331.0,0.30621966]
[1722349932919,11.56034881,3332.5,3330.8,0.06003665]
[1722349933221,5.07861187,3332.4,3330.8,0.06003671]
[1722349933383,1.52861187,3332.3,3330.8,0.06003671]
[1722349933578,1.52861187,3332.3,3330.9,35.0]
[1722349933824,1.52861187,3332.3,3331.0,3.10904238]
[1722349933997,6.8300435,3332.5,3331.1,2.3022]
[1722349934199,6.8300435,3332.5,3331.2,0.06002247]
[1722349934394,6.8300435,3332.5,3331.3,0.06002247]
[1722349935091,2.7993957,3333.4,3331.3,7.43002247]
[1722349935292,1.52797648,3333.3,3331.8,2.3198]
[1722349935493,0.5086957,3333.4,3331.9,0.06000798]
[1722349935722,0.5086957,3333.4,3331.8,2.3198]
[1722349936051,0.5086957,3333.4,3332.0,35.0]
[1722349936251,0.5086957,3333.4,3332.1,10.43000444]
[1722349936458,2.3649,3334.0,3332.1,10.43000444]
[1722349936459,2.3649,3334.0,3332.2,3.04901288]
[1722349936624,1.52772714,3333.9,3332.3,3.0]
[1722349937012,1.52772714,3333.9,3332.4,0.06000829]
[1722349937438,1.52772714,3333.9,3332.5,9.7507]
[1722349937751,3.1164,3334.6,3332.6,0.79895965]
[1722349937959,1.52749728,3334.4,3332.9,7.37]
[1722349938456,1.52749728,3334.4,3333.0,0.05999445]
[1722349938752,1.52749728,3334.4,3332.9,7.37]
[1722349938922,0.53004884,3334.3,3333.0,0.737]
[1722349939252,1.52749728,3334.2,3333.0,0.737]
[1722349939459,0.75,3334.6,3333.1,0.05999543]
[1722349939775,0.75,3334.6,3333.2,2.2833]
[1722349939957,0.75,3334.6,3333.3,0.05998834]
[1722349940112,0.75,3334.6,3333.3,7.37]
[1722349940456,1.52742784,3334.4,3333.4,1.26533]
[1722349940766,1.52742784,3334.4,3333.3,7.37]
[1722349941075,2.4987,3334.3,3333.3,7.37]
[1722349941352,2.4987,3334.3,3333.4,0.0837548]
[1722349941353,3.07993736,3334.2,3333.4,0.0837548]
[1722349941555,3.6378011,3334.1,3332.3,7.37]
[1722349941729,6.8300435,3333.8,3332.2,2.3383]
[1722349941929,1.52742784,3333.7,3332.2,2.3383]
[1722349942232,0.55,3333.6,3332.3,0.23383]
[1722349942440,1.52742784,3333.5,3332.3,0.23383]
[1722349942752,0.55,3333.4,3332.3,0.23383]
[1722349943111,0.55,3333.7,3332.3,3.23383]
[1722349943311,1.52779313,3333.6,3332.3,3.23383]
[1722349943640,1.44078366,3333.5,3332.3,3.0]
[1722349943958,2.3776,3333.3,3332.0,7.37]
[1722349944152,2.07779313,3333.2,3332.0,7.37]
[1722349944454,0.55,3333.2,3332.0,7.37]
[1722349944653,0.55,3333.2,3332.1,3.10902889]
[1722349944843,3.0,3333.7,3332.1,3.04901288]
[1722349945013,9.3280435,3333.8,3332.1,3.04901288]
[1722349945218,1.52785395,3333.7,3332.2,3.0]
[1722349945552,1.08558975,3333.6,3332.3,0.60490129]
[1722349945752,1.52785395,3333.5,3332.1,3.0]
[1722349946056,3.00039,3332.9,3332.2,3.00101]
[1722349946351,3.00039,3332.9,3332.3,3.0]
[1722349946555,3.00021,3333.1,3332.3,6.00092]
[1722349946709,1.08558975,3333.6,3332.5,3.00068]
[1722349946912,12.3276435,3333.8,3332.4,3.00082]
[1722349946913,3.00016,3333.2,3332.4,3.00082]
[1722349947140,3.00021,3333.1,3332.3,6.00092]
[1722349948053,3.00016,3333.2,3332.4,3.00082]
[1722349948358,3.00016,3333.2,3332.5,0.900174]
[1722349948565,3.00016,3333.2,3332.2,4.337101]
[1722349948858,3.00035,3333.0,3332.2,7.338111]
[1722349949069,6.8300435,3333.4,3331.6,9.6326]
[1722349949216,3.0008,3332.5,3331.8,3.00138]
[1722349949411,3.00066,3332.6,3331.8,3.00132]
[1722349949650,3.00066,3332.6,3331.9,0.300132]
[1722349950055,3.00071,3332.6,3331.9,0.300132]
[1722349950216,3.00071,3332.6,3331.9,3.301402]
[1722349950564,3.00059,3332.7,3331.9,0.300132]
[1722349950719,3.00021,3333.1,3332.0,0.39016292]
[1722349950919,3.0002,3333.2,3332.3,3.00088]
[1722349951145,0.55,3333.3,3332.0,3.00114]
[1722349951350,3.00062,3332.7,3331.9,6.301362]
[1722349951646,3.00062,3332.7,3331.5,3.178]
[1722349951647,3.00106,3332.2,3331.3,3.00179]
[1722349951847,3.00115,3332.1,3331.3,10.37178]
[1722349952047,3.00115,3332.1,3331.3,42.37]
[1722349952297,3.00133,3331.9,3331.3,42.37]
[1722349952491,3.0012,3332.0,3331.4,3.04901288]
[1722349952645,3.00098,3332.3,3331.6,3.00155]
[1722349953043,3.00098,3332.3,3331.4,6.05067288]
[1722349953305,3.00128,3332.0,3331.5,0.73896613]
[1722349953588,3.00105,3332.2,3331.3,45.37177]
[1722349953789,3.00089,3332.4,3331.6,3.00148]
[1722349953949,3.00089,3332.4,3331.5,3.00157]
[1722349954599,5.10096196,3333.3,3331.4,3.34971288]
[1722349954600,3.00033,3333.0,3331.6,0.06002273]
[1722349954749,2.99995,3333.4,3332.5,3.00073]
[1722349954953,2.99995,3333.4,3332.6,3.00063]
[1722349955174,2.99995,3333.4,3332.6,3.06063542]
[1722349955503,2.99991,3333.5,3332.7,35.0]
[1722349955707,2.99991,3333.5,3332.7,35.42806257]
[1722349955999,1.12262692,3333.9,3332.8,0.06000182]
[1722349956180,1.12262692,3333.9,3332.8,0.08456578]
[1722349956696,2.07769865,3333.8,3332.8,0.08456578]
[1722349956905,2.23168006,3333.7,3332.8,0.08456578]
[1722349957196,2.07769865,3333.6,3332.9,0.0845255]
[1722349957506,0.55,3333.6,3332.9,0.0845255]
[1722349957714,1.5277935,3333.5,3332.4,35.0]
[1722349958011,0.55,3333.4,3332.4,35.0]
[1722349958204,1.5277935,3333.3,3332.5,0.08468664]
[1722349958367,8.38213206,3333.9,3332.6,0.06000956]
[1722349958569,1.5277394,3333.8,3332.7,0.14460538]
[1722349958776,1.55208856,3334.4,3332.9,2.472]
[1722349959097,1.52748662,3334.3,3333.0,3.10900503]
[1722349959404,1.52748662,3334.2,3333.1,3.0]
[1722349959704,1.5274424,3334.1,3333.2,35.0]
[1722349959860,0.6565911,3334.5,3333.2,35.70375369]
[1722349959861,1.5274424,3334.0,3333.2,35.70375369]
[1722349960063,0.6565911,3334.5,3333.3,0.05999426]
[1722349960303,1.52747542,3334.4,3333.3,3.05999426]
[1722349960515,1.52747542,3334.4,3333.4,0.46069892]
[1722349960801,1.52747542,3334.4,3333.5,35.0]
[1722349961204,1.52747542,3334.4,3333.6,0.08393006]
[1722349961571,1.52747542,3334.4,3333.0,3.0]
[1722349961776,1.52747542,3334.4,3332.9,2.472]
[1722349961777,1.52747542,3334.4,3333.7,0.08388979]
[1722349962104,1.52747542,3334.4,3333.2,3.0]
[1722349962264,1.52747542,3334.4,3333.8,0.08384953]
[1722349962488,1.52747542,3334.4,3333.3,3.04901288]
[1722349962709,1.52747542,3334.4,3333.9,0.08380927]
[1722349963086,1.52747542,3334.4,3333.3,3.04901288]
[1722349963303,1.52747542,3334.4,3334.0,0.08376902]
[1722349963509,1.52747542,3334.4,3333.3,3.04901288]
[1722349963665,1.52747542,3334.4,3334.1,0.08372877]
[1722349963867,1.52747542,3334.4,3333.4,0.42806257]
[1722349964376,1.52747542,3334.4,3333.5,0.08397032]
[1722349964693,0.55,3334.3,3333.5,0.08397032]
[1722349964899,3.08417635,3334.2,3333.5,0.08397032]
[1722349965062,3.99759398,3334.1,3332.4,35.0]
[1722349965272,3.08417635,3334.0,3332.6,7.37]
[1722349965623,3.35981763,3334.1,3332.6,7.37]
[1722349965624,1.55781079,3333.7,3332.6,7.37]
[1722349965799,1.52747542,3333.6,3332.7,0.08429253]
[1722349966131,3.24106729,3333.6,3332.7,0.08429253]
[1722349966332,1.52747542,3333.5,3332.7,0.08429253]
[1722349966487,0.55,3333.4,3332.7,0.08429253]
[1722349966692,1.52747542,3333.3,3332.0,2.3117]
[1722349966921,1.52747542,3333.2,3332.1,36.02817797]
[1722349967242,8.38810054,3333.7,3332.1,36.05254475]
[1722349967442,1.52781588,3333.6,3332.2,2.87981284]
[1722349967641,1.52781588,3333.6,3332.4,5.6325]
[1722349967854,1.55805704,3334.1,3332.5,3.0]
[1722349968002,1.52760043,3334.0,3332.7,7.37]
[1722349968204,1.52760043,3333.9,3332.8,6.04901288]
[1722349968439,1.52760043,3333.8,3332.9,0.05999844]
[1722349968757,1.5588302,3334.4,3333.0,0.05999501]
[1722349968963,1.52743591,3334.3,3333.1,2.51449208]
[1722349969246,1.52743591,3334.3,3333.2,3.08388484]
[1722349969408,1.52743591,3334.2,3333.2,3.08388484]
[1722349969607,1.52743591,3334.1,3333.3,1.29083848]
[1722349969932,1.52743591,3334.0,3333.4,0.05998853]
[1722349970137,2.2154213,3334.5,3333.4,0.14379008]
[1722349970336,1.52738809,3334.4,3333.4,0.14379008]
[1722349970862,1.5588302,3334.3,3333.4,0.08380155]
[1722349971139,1.52738809,3334.2,3333.4,0.08380155]
[1722349971349,1.52738809,3334.2,3333.2,3.0]
[1722349971503,1.52738809,3334.2,3333.3,0.08374285]
[1722349971699,1.52738809,3334.2,3333.3,0.14373501]
[1722349971945,1.52738809,3334.2,3333.4,1.2968235]
[1722349972155,1.52738809,3334.1,3333.4,1.2968235]
[1722349972450,1.5273879,3334.0,3333.5,0.14365086]
[1722349972758,2.21458816,3334.5,3333.5,0.14365086]
[1722349972939,1.5274035,3334.4,3333.5,0.5876983]
[1722349973606,1.5274035,3334.4,3333.6,0.05998856]
[1722349974131,1.55799706,3334.3,3333.7,0.0835433]
[1722349974334,1.55799706,3334.1,3333.7,0.0835433]
[1722349974542,1.5274035,3334.0,3333.1,9.8245]
[1722349974766,1.55799706,3334.2,3333.1,9.8245]
[1722349974767,1.5274035,3333.9,3333.1,9.8245]
[1722349974909,3.7877809,3333.8,3333.2,0.08374463]
[1722349975110,1.5274035,3333.7,3333.2,0.08374463]
[1722349975353,3.08504055,3333.6,3333.1,7.37]
[1722349975566,3.08504055,3333.6,3332.3,7.37]
[1722349975567,1.83590756,3333.5,3332.3,7.37]
[1722349975875,1.5274035,3333.4,3332.4,0.08411089]
[1722349976018,1.5274035,3333.3,3332.4,0.08411089]
[1722349976212,1.5274035,3333.2,3332.4,0.08411089]
[1722349976652,1.55763705,3333.5,3332.5,0.0600119]
[1722349976851,1.52779372,3333.4,3332.5,0.0600119]
[1722349977178,1.52779372,3333.3,3332.2,2.2875]
[1722349977463,1.52779372,3333.2,3332.3,0.37294606]
[1722349977704,1.55763705,3333.7,3332.3,0.37294606]
[1722349977841,1.52775389,3333.6,3332.4,0.26604461]
[1722349978227,1.52775389,3333.6,3332.5,0.06000528]
[1722349978419,3.08529773,3333.6,3332.4,0.26604461]
[1722349978614,1.52775389,3333.5,3332.5,0.41071355]
[1722349978857,1.52775389,3333.4,3332.5,0.41071355]
[1722349979066,1.52775389,3333.3,3332.5,0.41071355]
[1722349979353,1.52775389,3333.2,3332.5,0.41071355]
[1722349979672,1.52775389,3333.1,3332.5,0.08410909]
[1722349979828,1.55754384,3333.6,3332.5,0.08410909]
[1722349980012,2.99995,3333.4,3332.6,3.00065]
[1722349980216,1.52778932,3333.3,3332.6,3.0847188]
[1722349980416,4.52787932,3333.3,3332.6,0.0840688]
[1722349980724,1.52778932,3333.2,3332.6,0.0840688]
[1722349980926,4.52790932,3333.2,3332.6,0.0840688]